bitfinex/quotes_ETHUSD_20260107
["timestamp","ask_amount","ask_price","bid_price","bid_amount"]
[1767816807232,1.82417648,3138.1,3136.8,0.91175948]
[1767816807751,1.82417648,3138.1,3136.7,1.0476561]
[1767816807752,5.0108745,3138.1,3136.9,7.28748072]
[1767816807952,5.01081888,3138.1,3136.9,7.28748072]
[1767816808154,1.82417648,3138.1,3136.9,7.28748072]
[1767816808352,2.33625523,3138.1,3137.0,0.72874807]
[1767816808857,0.98817648,3138.8,3137.1,0.91175948]
[1767816809158,0.837,3138.9,3137.1,0.91175948]
[1767816809626,0.001,3138.9,3137.1,0.91175948]
[1767816809833,0.001,3138.9,3137.4,0.91175948]
[1767816810137,0.001,3138.9,3137.6,0.91175948]
[1767816810545,0.001,3138.9,3137.0,0.72874807]
[1767816810546,6.59037279,3138.5,3134.0,1.54865595]
[1767816810749,6.59037279,3138.5,3133.7,3.35]
[1767816810750,0.98817648,3136.6,3133.7,6.97792474]
[1767816811047,0.16,3136.7,3133.7,6.97792474]
[1767816811048,0.16591185,3134.9,3133.8,0.91175948]
[1767816811247,0.16591185,3134.9,3133.9,0.37868088]
[1767816811857,0.16591185,3134.9,3134.0,6.38162092]
[1767816812157,0.16591185,3134.9,3134.0,3.19081046]
[1767816812652,0.16591185,3134.9,3133.9,3.56957731]
[1767816812858,0.07922986,3134.9,3133.9,6.76048959]
[1767816813057,0.0469561,3134.9,3134.0,0.76722491]
[1767816813459,0.0469561,3134.9,3133.9,3.56957731]
[1767816813829,0.0469561,3134.9,3134.0,3.19081046]
[1767816814155,4.20778064,3134.9,3133.9,3.56956126]
[1767816814354,1.01786924,3134.9,3134.2,0.002]
[1767816814928,4.2077739,3134.9,3134.2,0.002]
[1767816815156,4.20776781,3134.9,3134.2,0.002]
[1767816815350,1.01786924,3134.9,3134.2,0.002]
[1767816815551,0.0469561,3134.9,3134.2,0.002]
[1767816816062,30.0,3136.8,3134.2,0.96039755]
[1767816816253,0.97091314,3136.5,3134.2,0.002]
[1767816816453,1.0027623,3136.5,3134.3,0.836]
[1767816817342,0.97091314,3136.3,3134.2,0.002]
[1767816817563,0.97091314,3136.1,3134.3,0.836]
[1767816817766,0.97091314,3135.7,3134.4,3.19040326]
[1767816818054,0.97091314,3135.5,3134.5,0.40264033]
[1767816818258,0.97091314,3135.5,3134.4,3.09354359]
[1767816819351,0.97091314,3135.5,3134.4,6.28394685]
[1767816819929,1.80791314,3136.2,3134.5,0.95839755]
[1767816820132,0.82167033,3136.1,3134.7,0.95839755]
[1767816820936,3.18839759,3136.4,3134.7,0.95839755]
[1767816821145,0.97091314,3137.9,3135.9,0.92653316]
[1767816821460,0.97091314,3137.9,3136.0,0.837]
[1767816821676,0.97091314,3137.7,3136.1,0.837]
[1767816821834,0.97091314,3137.4,3136.2,3.18857215]
[1767816822969,0.97091314,3137.4,3136.1,4.02563127]
[1767816823737,3.18745418,3137.3,3136.1,7.2143051]
[1767816824341,3.18745418,3137.3,3136.2,0.837]
[1767816824961,6.37490836,3137.3,3136.2,0.837]
[1767816825186,0.73458215,3137.2,3136.2,0.837]
[1767816825980,6.37531478,3137.1,3135.9,0.95839755]
[1767816826276,3.18745418,3137.3,3136.3,0.83600101]
[1767816827052,0.001,3137.1,3136.3,0.83600101]
[1767816828972,0.001,3137.1,3136.3,4.02446109]
[1767816831678,0.001,3137.1,3136.3,0.83600101]
[1767816832876,0.001,3137.1,3136.3,4.0244576]
[1767816833076,0.001,3137.1,3136.3,4.74576903]
[1767816833257,0.001,3137.1,3136.4,0.95839755]
[1767816833458,0.001,3137.1,3136.5,0.837]
[1767816834251,0.001,3137.1,3136.3,0.72131143]
[1767816834477,0.001,3137.1,3136.4,0.837]
[1767816835779,0.001,3137.1,3136.4,4.02536837]
[1767816836083,0.001,3137.1,3136.4,4.37216229]
[1767816836282,0.001,3137.1,3136.5,0.836]
[1767816838583,0.001,3137.1,3136.5,4.02424609]
[1767816838893,0.001,3137.1,3136.6,0.95839755]
[1767816839196,0.001,3137.1,3136.6,0.9902792]
[1767816839484,0.001,3137.1,3136.7,1.7786768]
[1767816840367,0.02200287,3136.8,3136.7,1.7786768]
[1767816840680,0.001,3137.1,3136.7,5.80274068]
[1767816841255,0.001,3137.1,3136.7,4.96674068]
[1767816841487,0.001,3137.1,3136.8,0.836]
[1767816841980,0.001,3137.1,3136.4,0.90885466]
[1767816842180,0.001,3137.1,3136.6,3.18814806]
[1767816842548,0.001,3137.1,3136.6,4.09700272]
[1767816842753,0.001,3137.1,3136.7,0.836]
[1767816844261,0.001,3137.1,3136.8,0.836]
[1767816845086,0.001,3137.1,3135.7,0.90885466]
[1767816845387,0.001,3137.1,3136.4,3.18834059]
[1767816845563,0.001,3137.1,3136.5,4.02425675]
[1767816845754,0.001,3137.1,3136.5,4.0242653]
[1767816846291,0.001,3137.1,3136.5,0.836]
[1767816846585,0.001,3137.1,3136.6,0.67822357]
[1767816846755,0.63859084,3137.1,3136.3,4.09725847]
[1767816846954,0.63859084,3137.1,3136.4,0.836]
[1767816847688,0.63859084,3137.1,3136.4,4.02435288]
[1767816848571,3.82625544,3137.1,3136.4,0.836]
[1767816848774,0.95358227,3137.0,3135.8,0.90801508]
[1767816849081,0.95358227,3136.8,3135.9,0.836]
[1767816849696,0.95358227,3136.8,3135.4,0.90885466]
[1767816849988,0.95358227,3136.8,3135.8,3.1889724]
[1767816850289,0.79675023,3136.9,3136.1,0.90885466]
[1767816850489,7.32990426,3137.1,3136.2,0.836]
[1767816850694,0.95358227,3137.0,3136.2,0.836]
[1767816851083,0.95358227,3137.0,3135.9,0.836]
[1767816851275,0.95458227,3138.4,3136.3,0.90885466]
[1767816851474,0.95358227,3138.1,3136.3,0.90885466]
[1767816851795,0.95358227,3138.1,3136.4,1.74485466]
[1767816852485,7.32706855,3138.0,3136.6,4.09702018]
[1767816852682,7.32706855,3138.0,3136.7,0.90885466]
[1767816852886,0.73270686,3137.9,3136.7,0.90885466]
[1767816853084,0.73270686,3137.9,3136.1,0.002]
[1767816853085,0.9854629,3137.8,3136.1,0.00100101]
[1767816853288,0.001,3136.8,3136.1,0.00100101]
[1767816854293,0.001,3136.8,3136.2,0.836]
[1767816854673,0.64185443,3136.8,3136.2,0.836]
[1767816854872,0.001,3136.8,3136.1,0.00100101]
[1767816855075,0.001,3136.8,3136.2,0.836]
[1767816855421,0.9864629,3136.8,3135.8,0.002]
[1767816855579,0.9864629,3136.8,3135.9,0.836]
[1767816855779,0.73621841,3136.7,3135.9,0.836]
[1767816856578,3.18816552,3136.6,3135.9,0.836]
[1767816856906,3.92429942,3136.7,3135.9,0.836]
[1767816857219,0.69180376,3136.7,3136.0,0.90685466]
[1767816857373,0.001,3136.8,3135.8,0.002]
[1767816857374,3.18896755,3136.8,3135.8,0.002]
[1767816857701,6.3769351,3136.8,3135.9,0.836]
[1767816857901,0.03188063,3136.7,3135.9,0.836]
[1767816858082,0.64088157,3136.7,3136.0,0.836]
[1767816858504,0.001,3136.8,3136.0,0.836]
[1767816860704,0.001,3136.8,3136.0,4.0247743]
[1767816861007,0.001,3136.8,3136.0,4.02470323]
[1767816861230,0.001,3136.8,3136.1,0.90885466]
[1767816862002,0.001,3136.8,3136.0,7.21147874]
[1767816862003,0.95458227,3136.8,3136.0,7.21147874]
[1767816862196,0.95458227,3136.8,3136.1,0.72114787]
[1767816862396,0.95458227,3136.8,3136.0,3.18870323]
[1767816862593,0.95458227,3136.8,3136.1,0.82401614]
[1767816863096,6.37700341,3136.8,3135.8,4.09976083]
[1767816863295,6.37700341,3136.8,3136.2,0.836]
[1767816863807,6.37700341,3136.8,3136.3,0.836]
[1767816863990,0.63770034,3136.7,3136.3,0.836]
[1767816864705,0.63770034,3136.7,3136.3,0.51900101]
[1767816865010,0.001,3136.8,3136.6,0.002]
[1767816866504,0.001,3136.8,3136.6,0.838]
[1767816867309,0.001,3136.8,3136.6,0.002]
[1767816868194,0.95458227,3136.8,3136.3,0.00100101]
[1767816868529,0.001,3136.8,3136.3,0.00100101]
[1767816868937,0.001,3136.8,3136.1,4.09347684]
[1767816869224,0.001,3136.8,3136.2,0.90885466]
[1767816869613,0.001,3136.8,3136.3,0.90885466]
[1767816869813,0.001,3136.8,3136.4,0.836]
[1767816869995,0.001,3136.8,3136.4,1.74485466]
[1767816873093,0.001,3136.8,3136.5,0.95448676]
[1767816873310,0.001,3136.8,3136.6,0.836]
[1767816873489,0.001,3136.8,3136.6,0.83500101]
[1767816873693,0.001,3136.8,3136.2,0.95448676]
[1767816873923,0.001,3136.8,3136.3,0.836]
[1767816875039,0.001,3136.8,3136.4,0.95448676]
[1767816876024,0.001,3136.8,3136.5,0.836]
[1767816876434,0.001,3136.8,3136.5,0.95448676]
[1767816876813,0.001,3136.8,3136.6,0.678]
[1767816877545,0.001,3136.8,3136.5,0.836]
[1767816878845,0.001,3136.8,3136.3,1.11755158]
[1767816879053,0.001,3136.8,3136.5,0.836]
[1767816881315,0.001,3136.8,3136.3,1.11755158]
[1767816881512,0.001,3136.8,3136.4,0.836]
[1767816881743,0.001,3136.8,3136.3,1.11755158]
[1767816882046,0.001,3136.8,3136.5,0.836]
[1767816883341,0.001,3136.8,3136.3,0.95448676]
[1767816883545,0.001,3136.8,3136.4,0.836]
[1767816884453,0.94275472,3136.8,3135.8,0.002]
[1767816884749,0.94175472,3136.6,3135.8,0.002]
[1767816885821,0.001,3136.8,3135.8,0.95648676]
[1767816886534,6.3769245,3136.8,3135.8,0.95648676]
[1767816886851,0.73505599,3136.7,3135.9,0.95448676]
[1767816888461,3.92314903,3136.7,3136.0,0.95448676]
[1767816889041,7.1431227,3136.7,3136.0,0.95448676]
[1767816889252,7.11124207,3136.7,3136.0,0.95448676]
[1767816889548,0.03188063,3136.6,3136.0,0.95448676]
[1767816889745,7.11124207,3136.7,3136.0,0.95448676]
[1767816889936,0.03188063,3136.6,3136.0,0.95448676]
[1767816890656,3.18826717,3136.5,3136.1,0.002]
[1767816891264,3.18826717,3136.5,3136.1,0.00100101]
[1767816891552,3.2201478,3136.5,3136.1,0.00100101]
[1767816892557,3.18826717,3136.5,3136.1,0.00100101]
[1767816892862,0.03188063,3136.6,3136.1,0.00100101]
[1767816892863,3.18820348,3136.6,3136.1,0.00100101]
[1767816893528,3.18820348,3136.6,3136.1,0.95448676]
[1767816893758,3.18810993,3136.7,3136.1,0.95448676]
[1767816896145,3.18900123,3136.8,3136.1,0.95448676]
[1767816896346,0.63768788,3136.7,3136.1,0.95448676]
[1767816896968,3.82584782,3136.7,3136.1,0.95448676]
[1767816897335,7.01400776,3136.7,3136.1,0.95448676]
[1767816897739,3.82584782,3136.7,3136.1,0.95448676]
[1767816898574,7.01400776,3136.7,3136.1,0.95448676]
[1767816898783,0.70150078,3136.6,3136.1,0.95448676]
[1767816899078,3.88970591,3136.6,3136.1,0.95448676]
[1767816900444,3.18820513,3136.6,3136.1,0.95448676]
[1767816900777,3.18807824,3136.7,3136.1,0.95448676]
[1767816900975,3.18900117,3136.8,3136.1,0.95448676]
[1767816901481,6.37700234,3136.8,3136.1,0.95448676]
[1767816902088,0.99592883,3136.7,3135.8,0.002]
[1767816902267,0.99592883,3136.6,3135.9,0.836]
[1767816902438,0.001,3136.5,3135.8,0.002]
[1767816902981,0.99692883,3136.5,3135.8,0.002]
[1767816903177,6.37673766,3136.4,3135.8,0.002]
[1767816903479,3.92573548,3136.4,3135.8,0.002]
[1767816903945,7.11410431,3136.4,3135.8,0.002]
[1767816904676,8.11003314,3136.4,3135.7,0.94609574]
[1767816906997,4.92166431,3136.4,3135.7,0.94609574]
[1767816907194,8.11003314,3136.4,3135.7,0.94609574]
[1767816909302,3.18857215,3136.2,3135.7,0.94609574]
[1767816910201,6.3771443,3136.2,3135.7,0.94609574]
[1767816911213,7.37307313,3136.2,3135.5,0.94609574]
[1767816911380,0.99592883,3136.1,3135.2,0.94609574]
[1767816911570,0.99592883,3135.9,3135.0,0.94809574]
[1767816912174,0.99592883,3135.9,3134.5,0.002]
[1767816912377,0.99592883,3135.9,3134.5,0.94809574]
[1767816913088,0.99592883,3135.9,3134.5,4.13838821]
[1767816913293,0.99592883,3135.5,3134.6,0.94609574]
[1767816913507,0.99592883,3135.5,3134.7,0.94609574]
[1767816913710,3.18918229,3135.6,3134.7,0.94609574]
[1767816914020,4.18508212,3135.7,3134.7,0.94609574]
[1767816914021,4.18502987,3135.7,3134.7,0.94609574]
[1767816914198,1.57430731,3136.0,3134.9,0.94609574]
[1767816914199,0.837,3136.0,3134.9,0.94609574]
[1767816914399,3.18974906,3136.1,3134.9,0.94609574]
[1767816914982,6.3785102,3136.1,3134.9,0.94609574]
[1767816915394,1.02780946,3136.0,3135.0,0.94609574]
[1767816915595,1.02780946,3136.0,3135.1,0.94609574]
[1767816915990,0.99592883,3136.0,3135.1,0.94609574]
[1767816917308,4.184752,3136.0,3135.1,0.94609574]
[1767816917476,0.99592883,3136.0,3135.2,0.94609574]
[1767816917680,0.001,3136.1,3135.2,0.94609574]
[1767816917880,3.18967933,3136.1,3135.3,1.67863561]
[1767816918104,0.001,3136.5,3135.8,0.94609574]
[1767816918295,7.37353189,3136.5,3135.4,0.94609574]
[1767816918481,0.99592883,3136.4,3135.4,0.94609574]
[1767816919404,6.37694098,3136.3,3135.4,0.94609574]
[1767816919583,6.37694098,3136.3,3135.5,0.94609574]
[1767816920005,3.18847049,3136.3,3135.5,0.94609574]
[1767816920207,6.37694098,3136.3,3135.5,0.94609574]
[1767816920920,7.37286981,3136.3,3135.5,0.94609574]
[1767816921305,7.37286981,3136.3,3135.3,0.73253987]
[1767816921306,0.99592883,3136.2,3135.3,1.67863561]
[1767816921513,4.18476568,3136.0,3135.3,0.94609574]
[1767816923020,0.99592883,3136.0,3135.3,0.94609574]
[1767816923216,4.18455535,3136.2,3135.4,0.94609574]
[1767816924091,3.18862652,3136.2,3135.5,0.94609574]
[1767816924317,3.188515,3136.3,3135.5,0.94609574]
[1767816924509,3.188515,3136.3,3135.5,1.3596427]
[1767816924815,6.37703,3136.3,3135.5,1.3596427]
[1767816925020,6.37703,3136.3,3135.5,0.94609574]
[1767816925523,3.18838665,3136.4,3135.5,0.94609574]
[1767816926098,3.18926717,3136.5,3135.6,0.94609574]
[1767816926297,0.001,3136.5,3135.7,0.94609574]
[1767816926590,0.001,3136.5,3135.9,0.94609574]
[1767816926921,0.001,3136.0,3135.9,0.94609574]
[1767816927120,0.001,3136.5,3136.0,0.94609574]
[1767816927491,0.99692883,3136.5,3135.8,1.12440531]
[1767816928022,4.18527033,3136.5,3135.8,1.12440531]
[1767816928219,3.1893415,3136.5,3135.8,1.12440531]
[1767816928995,3.18929916,3136.5,3135.8,1.12440531]
[1767816929320,0.001,3136.5,3136.0,0.94609574]
[1767816930403,0.001,3136.8,3136.3,0.94609574]
[1767816930995,0.837,3137.4,3136.6,0.94609574]
[1767816931246,7.37022765,3137.6,3136.6,0.94609574]
[1767816931530,0.99592883,3137.5,3136.6,1.78309574]
[1767816932022,1.7329516,3137.5,3136.6,1.78309574]
[1767816932322,3.18735258,3137.4,3136.6,1.78309574]
[1767816932696,6.37470516,3137.4,3136.6,1.78309574]
[1767816933327,6.37470516,3137.4,3136.5,0.836]
[1767816933328,0.95655975,3137.3,3136.5,0.836]
[1767816933621,0.95655975,3137.2,3136.5,0.836]
[1767816933792,3.9243034,3137.5,3136.6,0.94372368]
[1767816933998,3.9243034,3137.5,3136.7,0.94372368]
[1767816934303,7.11158403,3137.5,3136.8,0.94372368]
[1767816934621,6.37456126,3137.5,3136.8,0.94372368]
[1767816935527,6.37456126,3137.5,3135.9,3.18880405]
[1767816935528,0.95655975,3138.2,3137.0,0.94372368]
[1767816935824,0.98844038,3138.1,3137.0,0.94372368]
[1767816936002,0.95655975,3138.1,3137.0,0.94372368]
[1767816936207,7.33004603,3138.0,3137.0,0.94372368]
[1767816936810,0.95655975,3137.9,3137.0,0.94372368]
[1767816937016,3.18674314,3138.0,3137.0,0.94372368]
[1767816937219,3.99304347,3138.0,3137.1,0.94372368]
[1767816938321,7.17978661,3138.0,3137.1,0.94372368]
[1767816938923,0.98844038,3137.9,3136.8,0.94372368]
[1767816939123,0.98844038,3137.9,3136.7,0.836]
[1767816939328,0.98844038,3137.9,3136.4,0.94372368]
[1767816939513,0.95655975,3137.7,3136.0,0.94372368]
[1767816939719,0.95655975,3137.5,3136.1,1.77972368]
[1767816939923,0.95655975,3137.3,3136.1,0.94372368]
[1767816940225,0.95655975,3137.1,3136.1,0.94372368]
[1767816940404,7.33228099,3136.9,3136.1,0.94372368]
[1767816940608,7.33228099,3136.9,3135.8,3.36925213]
[1767816940609,0.95655975,3136.7,3135.8,0.002]
[1767816941331,0.95655975,3136.7,3135.8,0.94572368]
[1767816942648,3.18816552,3136.6,3135.8,0.94572368]
[1767816943310,3.18816552,3136.6,3135.8,4.13468766]
[1767816943505,3.18816552,3136.6,3135.8,0.94572368]
[1767816944108,3.18806506,3136.7,3135.9,0.94372368]
[1767816944338,6.37613012,3136.7,3135.9,0.94372368]
[1767816944844,6.37613012,3136.7,3135.8,0.49927807]
[1767816944845,0.95655975,3136.6,3135.8,0.49927807]
[1767816945011,0.95655975,3136.6,3135.8,0.33960295]
[1767816945211,0.95655975,3136.6,3135.8,1.28332663]
[1767816947013,4.1448258,3136.6,3135.8,0.94372368]
[1767816947711,3.99475167,3136.7,3135.9,0.94372368]
[1767816947911,7.18291154,3136.7,3135.9,0.94372368]
[1767816948951,0.95655975,3136.6,3135.7,0.94572368]
[1767816949650,7.18291154,3136.7,3135.8,0.94372368]
[1767816949950,0.88726994,3136.6,3135.9,0.94372368]
[1767816950514,0.88726994,3136.6,3136.0,0.94372368]
[1767816950718,1.79355975,3137.0,3136.1,0.94372368]
[1767816950719,4.14437042,3137.0,3136.1,0.94372368]
[1767816951033,4.14437042,3137.0,3136.0,0.836]
[1767816951034,4.14416848,3137.2,3136.3,0.94372368]
[1767816951234,0.837,3137.4,3136.3,0.94372368]
[1767816951439,0.837,3137.4,3136.2,6.3771443]
[1767816951440,0.001,3137.6,3136.5,0.94372368]
[1767816951747,0.001,3137.6,3136.4,0.76397048]
[1767816951748,0.001,3137.6,3136.7,0.94372368]
[1767816951949,3.18821979,3137.6,3136.7,0.94372368]
[1767816952117,4.14477954,3137.6,3136.7,1.77972368]
[1767816952518,7.33199933,3137.6,3136.7,1.77972368]
[1767816952749,8.06519926,3137.6,3136.7,1.77972368]
[1767816953325,3.18725099,3137.5,3136.7,1.77972368]
[1767816953521,0.001,3137.2,3136.7,1.77972368]
[1767816953923,0.001,3137.2,3136.5,0.94372368]
[1767816954122,0.001,3137.2,3136.5,0.836]
[1767816954816,0.98944038,3137.2,3136.2,0.002]
[1767816955021,7.33187453,3137.1,3136.2,0.002]
[1767816955246,0.73328745,3137.0,3136.2,0.002]
[1767816956047,0.73328745,3137.0,3136.2,0.94572368]
[1767816956352,3.18765739,3137.1,3136.2,0.94572368]
[1767816957149,0.001,3137.2,3136.4,0.94372368]
[1767816961070,0.95755975,3137.2,3136.2,0.94572368]
[1767816961415,0.95655975,3137.0,3136.2,0.002]
[1767816961723,0.99785759,3136.8,3136.2,0.002]
[1767816962027,0.73735788,3136.7,3136.2,0.002]
[1767816964333,3.18859557,3137.2,3136.2,0.93320068]
[1767816964334,3.187759,3137.0,3136.2,0.93320068]
[1767816965239,3.18768991,3137.1,3136.2,0.93320068]
[1767816965467,6.37537982,3137.1,3136.4,0.93120068]
[1767816966376,0.001,3137.2,3136.4,0.93120068]
[1767816966876,0.001,3136.7,3136.4,0.93120068]
[1767816968492,0.001,3136.7,3136.4,1.10812075]
[1767816968970,0.001,3136.7,3136.2,0.93320068]
[1767816969164,0.001,3136.7,3136.2,0.002]
[1767816969742,0.03288063,3137.2,3136.5,0.93120068]
[1767816969743,0.001,3137.2,3136.5,0.93120068]
[1767816970073,0.91509224,3137.2,3136.3,4.11962204]
[1767816970278,0.91409224,3137.1,3136.4,0.4121622]
[1767816970450,0.91409224,3137.1,3136.2,4.12169542]
[1767816970778,0.91409224,3137.1,3136.3,0.93120068]
[1767816970981,0.001,3137.2,3136.3,0.93120068]
[1767816971364,0.91509224,3137.2,3136.3,0.93120068]
[1767816971553,0.94597287,3137.1,3136.2,0.002]
[1767816971758,0.91409224,3137.0,3136.2,0.002]
[1767816972573,4.10215612,3136.7,3136.2,0.002]
[1767816972987,0.91409224,3136.6,3136.2,0.002]
[1767816973677,0.91409224,3136.6,3135.9,0.002]
[1767816974881,4.10235941,3136.5,3135.9,0.002]
[1767816975048,4.8314205,3136.5,3135.9,0.002]
[1767816975683,0.91409224,3136.4,3135.9,0.002]
[1767816975848,0.91409224,3136.4,3135.7,0.002]
[1767816976481,0.91409224,3136.4,3135.5,0.002]
[1767816976887,0.91409224,3136.2,3134.7,4.12119965]
[1767816977061,0.91409224,3136.0,3134.8,4.0279287]
[1767816977252,0.91409224,3136.0,3134.8,4.02796073]
[1767816977753,0.91409224,3136.0,3134.9,4.12109297]
[1767816978057,0.91409224,3136.0,3134.9,4.12106683]
[1767816978858,0.91409224,3135.8,3134.9,4.12106683]
[1767816979050,0.91409224,3135.8,3134.9,4.93597204]
[1767816979251,0.91409224,3135.8,3134.8,0.002]
[1767816979746,0.91409224,3135.8,3134.6,0.002]
[1767816980854,0.91409224,3135.6,3134.6,0.002]
[1767816981056,0.91409224,3135.4,3134.6,0.002]
[1767816981284,1.08920146,3135.4,3134.6,0.002]
[1767816983078,0.91409224,3135.2,3134.6,0.002]
[1767816985080,0.91409224,3135.2,3128.6,11.421122]
[1767816985081,0.91409224,3135.0,3132.7,0.93120068]
[1767816985262,0.91409224,3134.8,3133.6,0.93120068]
[1767816986688,0.91409224,3134.8,3133.1,0.93120068]
[1767816986895,0.91409224,3134.6,3132.8,0.93120068]
[1767816987184,0.91409224,3134.4,3133.0,0.93120068]
[1767816987385,0.91409224,3134.2,3133.0,0.93120068]
[1767816987865,0.837,3134.1,3133.0,0.93120068]
[1767816988064,0.837,3134.1,3133.2,0.93120068]
[1767816988872,1.75109224,3134.1,3133.2,0.93120068]
[1767816989071,1.75109224,3134.1,3133.3,3.19152331]
[1767816989493,1.75109224,3134.1,3133.3,6.38304662]
[1767816989995,0.17510922,3134.7,3133.4,0.93120068]
[1767816989996,3.19022576,3134.6,3133.4,0.93120068]
[1767816990186,0.837,3134.5,3133.6,0.93120068]
[1767816990668,0.837,3134.6,3133.6,0.93120068]
[1767816991066,0.91409224,3135.1,3133.8,0.93120068]
[1767816991266,1.04795037,3136.1,3133.8,0.93120068]
[1767816991267,1.08920146,3135.4,3133.8,0.93120068]
[1767816991492,0.91409224,3135.7,3134.0,0.93120068]
[1767816991696,0.91409224,3135.7,3133.9,0.73134325]
[1767816991697,3.18897888,3135.8,3134.2,0.93120068]
[1767816991999,3.18897888,3135.8,3134.1,0.837]
[1767816992000,0.837,3135.9,3134.4,0.91519323]
[1767816992402,0.001,3135.5,3134.4,0.91519323]
[1767816992892,0.001,3135.5,3134.3,0.17682007]
[1767816992893,0.001,3135.5,3134.6,0.91519323]
[1767816993197,0.001,3135.5,3134.8,0.91519323]
[1767816994199,0.99732452,3136.2,3135.1,0.91519323]
[1767816994386,4.60448417,3136.2,3135.1,0.91519323]
[1767816994693,0.41858398,3136.2,3135.1,0.91519323]
[1767816994993,0.837,3136.3,3135.1,0.91519323]
[1767816995301,4.02547124,3136.3,3135.2,4.10478241]
[1767816995806,0.99832452,3136.7,3135.3,0.91519323]
[1767816996099,0.99732452,3136.3,3135.3,0.91519323]
[1767816996276,0.99732452,3136.3,3135.4,0.41047824]
[1767816996689,0.99732452,3136.3,3135.1,3.18967532]
[1767816997292,0.99732452,3135.9,3134.9,3.18983558]
[1767816997604,0.99732452,3135.9,3135.0,3.18979205]
[1767816997962,1.02920515,3135.9,3135.0,3.18979205]
[1767816998185,1.02920515,3135.9,3135.1,0.3189792]
[1767816998590,0.99732452,3135.9,3135.1,0.3189792]
[1767816998995,0.99732452,3136.2,3135.1,1.23417243]
[1767816999295,0.99732452,3136.2,3135.2,6.37917836]
[1767816999600,4.18591255,3136.2,3135.2,3.18958918]
[1767816999896,4.68820381,3136.2,3135.2,3.63196534]
[1767817000306,0.99732452,3136.1,3135.2,0.44237616]
[1767817000604,0.99732452,3136.1,3135.2,1.35756939]
[1767817001399,0.99732452,3136.1,3135.3,3.18948744]
[1767817001702,7.37476436,3136.1,3135.2,1.35756939]
[1767817001869,0.78770556,3136.0,3135.2,0.91519323]
[1767817002470,0.99732452,3135.9,3134.9,4.10508555]
[1767817002665,0.78770556,3136.0,3134.8,3.18991484]
[1767817002666,0.99732452,3135.7,3134.8,3.18991484]
[1767817002895,0.99732452,3135.7,3134.7,3.19008338]
[1767817003084,0.99732452,3135.7,3134.8,0.49422766]
[1767817003288,0.99732452,3135.7,3134.9,3.1898381]
[1767817003489,0.99732452,3135.7,3135.0,3.18978759]
[1767817003692,0.99732452,3135.7,3134.9,6.37978882]
[1767817003880,4.97384408,3136.0,3135.0,0.91519323]
[1767817004202,0.49738441,3135.9,3135.0,0.91519323]
[1767817004609,0.49738441,3135.9,3135.1,0.002]
[1767817005293,0.99732452,3135.8,3135.1,0.002]
[1767817005689,0.99732452,3135.4,3134.8,0.002]
[1767817005880,0.73758925,3135.3,3134.8,0.91719323]
[1767817006070,3.18897888,3135.8,3134.8,0.91719323]
[1767817007186,3.68631174,3135.9,3134.8,0.91719323]
[1767817007989,3.68631174,3135.9,3134.9,4.10508764]
[1767817008918,3.68631174,3135.9,3134.8,3.19198864]
[1767817008919,1.02920515,3135.8,3134.8,0.002]
[1767817009214,0.99732452,3135.6,3134.8,0.002]
[1767817010114,3.189284,3135.5,3134.8,0.002]
[1767817011205,6.378568,3135.5,3134.8,0.002]
[1767817011413,3.189284,3135.5,3134.8,0.002]
[1767817012095,7.3757167,3135.6,3134.8,0.002]
[1767817012395,0.73757167,3135.5,3134.8,0.002]
[1767817012611,1.73489619,3135.5,3134.8,0.002]
[1767817013317,0.99732452,3135.4,3134.8,0.002]
[1767817013679,0.73757167,3135.5,3134.8,0.002]
[1767817014395,0.49738441,3135.9,3134.8,0.91719323]
[1767817014704,0.99732452,3135.8,3134.8,0.91719323]
[1767817014932,0.001,3136.0,3134.8,0.91719323]
[1767817016308,0.001,3136.0,3135.0,0.91519323]
[1767817016484,0.001,3136.0,3135.2,0.91519323]
[1767817017602,0.001,3136.0,3135.3,3.18948744]
[1767817017816,0.001,3136.0,3135.3,3.68385551]
[1767817018836,0.001,3136.0,3135.3,0.49436807]
[1767817019132,0.001,3136.0,3135.3,1.4095613]
[1767817019631,0.99732452,3135.9,3135.3,0.49436807]
[1767817019829,0.99732452,3135.9,3135.1,0.002]
[1767817021019,0.99732452,3135.9,3135.1,3.19164524]
[1767817021403,0.99732452,3135.9,3135.2,3.18957981]
[1767817021608,0.99732452,3135.9,3135.1,0.002]
[1767817021807,4.18626029,3135.9,3135.1,0.002]
[1767817022007,4.92385705,3135.9,3135.1,0.002]
[1767817022225,4.92381091,3135.9,3135.1,0.002]
[1767817022714,0.93119332,3135.8,3135.1,0.002]
[1767817023035,0.93119332,3135.6,3135.1,0.002]
[1767817023224,0.93119332,3135.4,3135.1,0.002]
[1767817023730,4.12034262,3135.7,3135.1,0.002]
[1767817024031,0.41203426,3135.6,3135.1,0.002]
[1767817024634,1.34322758,3135.6,3135.1,0.002]
[1767817025013,0.93119332,3135.5,3135.1,0.002]
[1767817025205,0.93119332,3135.5,3134.5,3.19029259]
[1767817025607,4.12057904,3135.4,3134.6,3.19019819]
[1767817026006,0.93119332,3135.3,3134.6,3.19019819]
[1767817026438,0.93119332,3135.3,3134.4,4.02739436]
[1767817026439,0.93119332,3135.3,3134.5,6.38056539]
[1767817026638,0.93119332,3135.8,3134.5,6.38056539]
[1767817027310,0.93119332,3135.8,3134.5,3.19026391]
[1767817027509,0.93119332,3135.6,3134.6,0.81827427]
[1767817027711,0.93119332,3135.4,3134.6,4.00845844]
[1767817028417,0.93119332,3135.4,3134.6,0.81827427]
[1767817028625,0.93119332,3135.4,3134.6,4.00847258]
[1767817028834,0.93119332,3135.4,3134.2,3.19058338]
[1767817029143,0.93119332,3135.4,3134.3,0.837]
[1767817029638,0.93119332,3135.4,3134.8,0.002]
[1767817029837,0.93119332,3135.1,3134.8,0.002]
[1767817030613,0.001,3135.2,3134.8,0.002]
[1767817030809,0.93119332,3135.1,3134.5,2.02e-06]
[1767817032135,0.93119332,3135.0,3134.5,2.02e-06]
[1767817032644,0.001,3135.2,3134.5,2.02e-06]
[1767817032845,0.93219332,3135.2,3134.5,2.02e-06]
[1767817033058,4.12187255,3135.2,3134.5,2.02e-06]
[1767817033917,0.93219332,3135.2,3134.5,2.02e-06]
[1767817034423,0.001,3135.2,3134.5,1.80210645]